fUST/lending_fUST_20250217
["ID","MTS","AMOUNT","RATE_DAILY","PERIOD"]
[353272908,1739733199691,-17442.98140767,0.00016656,120]
[353272909,1739733199725,-1000.0,0.00016656,30]
[353272910,1739733199750,-1000.0,0.00016656,30]
[353272911,1739733199779,-1000.0,0.00016656,30]
[353272912,1739733199803,-1000.0,0.00016656,30]
[353272913,1739733199827,-1000.0,0.00016656,30]
[353272914,1739733199854,-1813.818182,0.00016656,30]
[353272915,1739733231789,150.0,0.00016656,90]
[353272916,1739733275865,-3445.26242453,0.00014,31]
[353272917,1739733275917,-6110.94031638,0.00018,30]
[353272918,1739733275942,-10000.0,0.00018,30]
[353272919,1739733275973,-500.0,0.00019178,30]
[353272920,1739733275999,-33321.52567258,0.000195,30]
[353272921,1739733276025,-500.0,0.00019726,30]
[353272922,1739733276051,-1198.5528371,0.0002,30]
[353272923,1739733276077,-5000.0,0.0002,120]
[353272924,1739733276101,-2000.0,0.0002,120]
[353272925,1739733276124,-175.0,0.0002,120]
[353272926,1739733276148,-56464.694027,0.0002,120]
[353272927,1739733276172,-584.25715,0.0002,120]
[353272928,1739733276195,-150.0,0.0002,30]
[353272929,1739733276218,-500.0,0.00020273,30]
[353272930,1739733276243,-455.72364566,0.0002051,120]
[353272931,1739733276270,-500.0,0.00020821,30]
[353272932,1739733276295,-838.56684388,0.00021,30]
[353272933,1739733276318,-500.0,0.00021,120]
[353272934,1739733276341,-2000.0,0.00021,120]
[353272935,1739733276367,-1502.37091184,0.000212,30]
[353272936,1739733276393,-500.0,0.00021369,30]
[353272937,1739733276416,-1100.0,0.00021917,30]
[353272938,1739733276440,-1100.0,0.00021917,30]
[353272939,1739733276466,-936.75390101,0.00021917,30]
[353272940,1739733276490,-500.0,0.00021917,30]
[353272941,1739733276513,-12998.30175507,0.00022,30]
[353272942,1739733276536,-2011.0,0.00022,120]
[353272943,1739733276562,-500.0,0.00022,120]
[353272944,1739733276590,-500.0,0.00022465,30]
[353272945,1739733276612,-1096.912,0.00023,120]
[353272946,1739733276635,-2000.0,0.00023,120]
[353272947,1739733276658,-3152.08964611,0.00023,60]
[353272948,1739733276683,-500.0,0.00023013,30]
[353272949,1739733276707,-225.0,0.000234,120]
[353272950,1739733276729,-2774.0,0.000235,120]
[353272951,1739733276753,-500.0,0.00023561,30]
[353272952,1739733276779,-334.98018167,0.00024,120]
[353272953,1739733276802,-500.0,0.00024,120]
[353272954,1739733276825,-2000.0,0.00024,120]
[353272955,1739733276848,-318.7931313,0.00024109,30]
[353272956,1739733293008,-250.0,0.00025,120]
[353272957,1739733293035,-15952.56014506,0.00025,120]
[353272958,1739733293059,-15372.54641689,0.00025,120]
[353272959,1739733293084,-151.9295032,0.00025,30]
[353272960,1739733293108,-2000.0,0.00025,120]
[353272961,1739733293132,-819.2559173,0.00025,60]
[353272962,1739733293156,-7438.69753278,0.00025,30]
[353272963,1739733293182,-500.0,0.00026,120]
[353272964,1739733293207,-7438.69753278,0.00026,120]
[353272965,1739733293231,-384.84317107,0.0002661,30]
[353272966,1739733293255,-4129.61176878,0.00027,120]
[353272967,1739733293279,-633.56703567,0.00027,120]
[353272968,1739733293444,-1107.24732,0.00027,120]
[353272969,1739733293470,-1107.24732,0.00027,120]
[353272970,1739733293494,-1107.24732,0.00027,120]
[353272971,1739733293518,-1107.24732,0.00027,120]
[353272972,1739733293543,-1107.24732,0.00027,120]
[353272973,1739733293568,-1107.24732,0.00027,120]
[353272974,1739733293594,-1107.24732,0.00027,120]
[353272975,1739733293619,-1107.24732,0.00027,120]
[353272976,1739733293643,-1107.24737,0.00027,120]
[353272977,1739733293669,-50000.0,0.00027,30]
[353272978,1739733293695,-6250.0,0.00027397,120]
[353272979,1739733323055,218.06374026,0.00018904,120]
[353272989,1739734018104,-300.0,8.217e-05,2]
[353272990,1739734018128,-500.0,8.218e-05,2]
[353272991,1739734018150,-500.0,8.218e-05,2]
[353272992,1739734018174,-500.0,8.218e-05,2]
[353272993,1739734018197,-500.0,8.218e-05,2]
[353272994,1739734018219,-500.0,8.218e-05,2]
[353272995,1739734018243,-500.0,8.218e-05,2]
[353272996,1739734018266,-482.92044866,8.218e-05,2]
[353272997,1739734018288,-547.73142348,8.218e-05,2]
[353272998,1739734018308,-500.0,8.219e-05,2]
[353272999,1739734018331,-639.26932728,8.219e-05,2]
[353273000,1739734018352,-500.0,8.219e-05,2]
[353273001,1739734018372,-500.0,8.219e-05,2]
[353273002,1739734018392,-250.04220008,8.219e-05,2]
[353273003,1739734018412,-1181.0,8.219e-05,2]
[353273004,1739734018436,-500.0,8.219e-05,2]
[353273005,1739734018457,-500.0,8.219e-05,2]
[353273006,1739734018477,-249.58592137,8.219e-05,2]
[353273007,1739734018497,-500.0,8.219e-05,2]
[353273008,1739734018518,-400.2037739,8.219e-05,2]
[353273009,1739734018538,-500.0,8.219e-05,2]
[353273010,1739734018559,-502.63346704,8.219e-05,2]
[353273011,1739734018580,-500.0,8.219e-05,2]
[353273012,1739734018601,-500.0,8.219e-05,2]
[353273013,1739734018621,-620.50429697,8.219e-05,2]
[353273014,1739734018641,-502.52088211,8.219e-05,2]
[353273015,1739734018663,-500.0,8.219e-05,2]
[353273016,1739734018684,-500.0,8.219e-05,2]
[353273017,1739734018706,-444.65996611,8.219e-05,2]
[353273485,1739734243727,-300.0,8.218e-05,2]
[353273487,1739734243737,-55.34003389,8.219e-05,2]
[353273489,1739734243747,-500.0,8.219e-05,2]
[353273491,1739734243756,-500.0,8.219e-05,2]
[353273493,1739734243765,-269.22348911,8.219e-05,2]
[353273782,1739734246534,-230.77651089,8.219e-05,2]
[353273784,1739734246543,-501.85798957,8.219e-05,2]
[353273786,1739734246553,-500.0,8.219e-05,2]
[353273789,1739734246563,-500.0,8.219e-05,2]
[353273791,1739734246572,-500.0,8.219e-05,2]
[353273793,1739734246582,-500.0,8.219e-05,2]
[353273795,1739734246592,-500.0,8.219e-05,2]
[353273797,1739734246603,-500.0,8.219e-05,2]
[353273799,1739734246612,-503.43145638,8.219e-05,2]
[353273801,1739734246622,-500.96566589,8.219e-05,2]
[353273802,1739734246631,-500.0,8.219e-05,2]
[353273804,1739734246640,-501.93634187,8.219e-05,2]
[353273806,1739734246650,-500.0,8.219e-05,2]
[353273808,1739734246659,-500.0,8.219e-05,2]
[353273810,1739734246669,-500.0,8.219e-05,2]
[353273812,1739734246678,-500.0,8.219e-05,2]
[353273814,1739734246687,-500.0,8.219e-05,2]
[353273816,1739734246697,-500.0,8.219e-05,2]
[353273818,1739734246707,-500.0,8.219e-05,2]
[353273820,1739734246717,-502.0355659,8.219e-05,2]
[353273822,1739734246727,-500.0,8.219e-05,2]
[353273825,1739734246737,-500.0,8.219e-05,2]
[353273826,1739734246747,-590.15846162,8.219e-05,2]
[353273828,1739734246757,-500.0,8.219e-05,2]
[353273830,1739734246766,-500.0,8.219e-05,2]
[353273832,1739734246776,-500.0,8.219e-05,2]
[353273833,1739734246785,-500.0,8.219e-05,2]
[353273834,1739734246795,-500.0,8.219e-05,2]
[353273835,1739734246805,-500.0,8.219e-05,2]
[353273836,1739734246815,-500.0,8.219e-05,2]
[353273837,1739734246824,-500.0,8.219e-05,2]
[353273838,1739734246833,-503.79868617,8.219e-05,2]
[353273839,1739734246843,-500.0,8.219e-05,2]
[353273840,1739734246852,-500.0,8.219e-05,2]
[353273841,1739734246862,-500.0,8.219e-05,2]
[353273842,1739734246871,-500.0,8.219e-05,2]
[353273843,1739734246881,-500.0,8.219e-05,2]
[353273844,1739734246891,-500.0,8.219e-05,2]
[353273845,1739734246900,-500.0,8.219e-05,2]
[353273846,1739734246909,-500.0,8.219e-05,2]
[353273847,1739734246919,-500.0,8.219e-05,2]
[353273849,1739734246928,-583.96,8.219e-05,2]
[353273851,1739734246938,-500.0,8.219e-05,2]
[353273853,1739734246948,-694.78,8.219e-05,2]
[353273855,1739734246956,-500.0,8.219e-05,2]
[353273856,1739734246967,-500.0,8.219e-05,2]
[353273858,1739734246977,-500.0,8.219e-05,2]
[353273860,1739734246987,-500.0,8.219e-05,2]
[353273862,1739734246996,-500.0,8.219e-05,2]
[353273864,1739734247006,-500.0,8.219e-05,2]
[353273865,1739734247015,-500.0,8.219e-05,2]
[353273866,1739734247025,-500.0,8.219e-05,2]
[353273867,1739734247034,-500.0,8.219e-05,2]
[353273868,1739734247043,-714.39,8.219e-05,2]
[353273869,1739734247053,-500.0,8.219e-05,2]
[353273870,1739734247062,-500.0,8.219e-05,2]
[353273871,1739734247072,-1060.72,8.219e-05,2]
[353273872,1739734247081,-500.0,8.219e-05,2]
[353273873,1739734247091,-500.0,8.219e-05,2]
[353273874,1739734247101,-500.0,8.219e-05,2]
[353273875,1739734247110,-500.0,8.219e-05,2]
[353273876,1739734247120,-500.0,8.219e-05,2]
[353273877,1739734247130,-500.0,8.219e-05,2]
[353273878,1739734247140,-500.0,8.219e-05,2]
[353273879,1739734247150,-500.0,8.219e-05,2]
[353273880,1739734247160,-500.0,8.219e-05,2]
[353273881,1739734247169,-500.0,8.219e-05,2]
[353273882,1739734247179,-504.14855898,8.219e-05,2]
[353273883,1739734247190,-500.0,8.219e-05,2]
[353273884,1739734247200,-500.0,8.219e-05,2]
[353273885,1739734247210,-500.0,8.219e-05,2]
[353273886,1739734247222,-500.0,8.219e-05,2]
[353273887,1739734247240,-500.0,8.219e-05,2]
[353273889,1739734247253,-500.0,8.219e-05,2]
[353273891,1739734247263,-500.0,8.219e-05,2]
[353273893,1739734247273,-500.0,8.219e-05,2]
[353273895,1739734247283,-500.0,8.219e-05,2]
[353273897,1739734247293,-500.0,8.219e-05,2]
[353273899,1739734247304,-500.0,8.219e-05,2]
[353273900,1739734247316,-500.0,8.219e-05,2]
[353273901,1739734247326,-500.0,8.219e-05,2]
[353273902,1739734247336,-662.44,8.219e-05,2]
[353273903,1739734247347,-500.0,8.219e-05,2]
[353273904,1739734247358,-500.0,8.219e-05,2]
[353273905,1739734247367,-252.73549147,8.219e-05,2]
[353273906,1739734247377,-500.0,8.219e-05,2]
[353273907,1739734247388,-490.86971665,8.219e-05,2]
[353273908,1739734247397,-515.97,8.219e-05,2]
[353273909,1739734247407,-500.0,8.219e-05,2]
[353273910,1739734247417,-500.0,8.219e-05,2]
[353273911,1739734247426,-500.0,8.219e-05,2]
[353273912,1739734247435,-500.0,8.219e-05,2]
[353273913,1739734247445,-500.0,8.219e-05,2]
[353273914,1739734247455,-542.73,8.219e-05,2]
[353273915,1739734247465,-500.0,8.219e-05,2]
[353273916,1739734247475,-500.0,8.219e-05,2]
[353273917,1739734247484,-500.0,8.219e-05,2]
[353273918,1739734247494,-500.0,8.219e-05,2]
[353273919,1739734247503,-500.0,8.219e-05,2]
[353273920,1739734247513,-500.0,8.219e-05,2]
[353273921,1739734247522,-500.0,8.219e-05,2]
[353273922,1739734247531,-500.0,8.219e-05,2]
[353273923,1739734247541,-500.0,8.219e-05,2]
[353273924,1739734247551,-500.0,8.219e-05,2]
[353273925,1739734247560,-500.0,8.219e-05,2]
[353273926,1739734247569,-500.0,8.219e-05,2]
[353273927,1739734247579,-500.0,8.219e-05,2]
[353273928,1739734247589,-500.0,8.219e-05,2]
[353273929,1739734247599,-500.0,8.219e-05,2]
[353273930,1739734247609,-314.62845176,8.219e-05,2]
[353273931,1739734247619,-500.0,8.219e-05,2]
[353273932,1739734247629,-500.0,8.219e-05,2]
[353273933,1739734247638,-500.0,8.219e-05,2]
[353273934,1739734247647,-500.0,8.219e-05,2]
[353273935,1739734247656,-500.0,8.219e-05,2]
[353273936,1739734247666,-500.0,8.219e-05,2]
[353273937,1739734247675,-500.0,8.219e-05,2]
[353273938,1739734247685,-500.0,8.219e-05,2]
[353273939,1739734247694,-500.0,8.219e-05,2]
[353273940,1739734247703,-500.0,8.219e-05,2]
[353273941,1739734247713,-500.0,8.219e-05,2]
[353273942,1739734247723,-500.01,8.219e-05,2]
[353273943,1739734247733,-381.97098005,8.219e-05,2]
[353273944,1739734247743,-500.0,8.219e-05,2]
[353273945,1739734247753,-500.0,8.219e-05,2]
[353273946,1739734247763,-500.0,8.219e-05,2]
[353273947,1739734247772,-500.0,8.219e-05,2]
[353273948,1739734247782,-500.0,8.219e-05,2]
[353273949,1739734247792,-500.0,8.219e-05,2]
[353273950,1739734247805,-500.0,8.219e-05,2]
[353273951,1739734247814,-500.0,8.219e-05,2]
[353273952,1739734247824,-500.0,8.219e-05,2]
[353273953,1739734247833,-500.0,8.219e-05,2]
[353273954,1739734247843,-500.0,8.219e-05,2]
[353273955,1739734247854,-500.0,8.219e-05,2]
[353273956,1739734247864,-500.0,8.219e-05,2]
[353273957,1739734247875,-500.0,8.219e-05,2]
[353273958,1739734247885,-699.6,8.219e-05,2]
[353273959,1739734247895,-767.72,8.219e-05,2]
[353273960,1739734247905,-500.0,8.219e-05,2]
[353273961,1739734247916,-500.0,8.219e-05,2]
[353273962,1739734247926,-500.0,8.219e-05,2]
[353273963,1739734247936,-26319.49,8.219e-05,2]
[353273964,1739734247947,-500.0,8.219e-05,2]
[353273965,1739734247957,-1483.37,8.219e-05,2]
[353273966,1739734247967,-500.0,8.219e-05,2]
[353273967,1739734247976,-500.0,8.219e-05,2]
[353273968,1739734247986,-1122.57,8.219e-05,2]
[353273969,1739734247995,-500.0,8.219e-05,2]
[353273970,1739734248004,-500.0,8.219e-05,2]
[353273971,1739734248014,-760.68,8.219e-05,2]
[353273972,1739734248023,-2544.33,8.219e-05,2]
[353273973,1739734248034,-500.0,8.219e-05,2]
[353273974,1739734248044,-500.0,8.219e-05,2]
[353273975,1739734248055,-657.42,8.219e-05,2]
[353273976,1739734248064,-4884.21,8.219e-05,2]
[353273977,1739734248074,-613.74,8.219e-05,2]
[353273978,1739734248084,-500.0,8.219e-05,2]
[353273979,1739734248093,-500.0,8.219e-05,2]
[353273980,1739734248104,-622.44305527,8.219e-05,2]
[353273981,1739734248114,-500.0,8.219e-05,2]
[353273982,1739734248124,-500.0,8.219e-05,2]
[353273983,1739734248134,-500.0,8.219e-05,2]
[353273984,1739734248145,-500.0,8.219e-05,2]
[353273985,1739734248155,-500.0,8.219e-05,2]
[353273986,1739734248166,-500.0,8.219e-05,2]
[353273987,1739734248177,-500.0,8.219e-05,2]
[353273988,1739734248188,-500.0,8.219e-05,2]
[353273989,1739734248199,-2261.83,8.219e-05,2]
[353273990,1739734248208,-500.0,8.219e-05,2]
[353273991,1739734248220,-500.0,8.219e-05,2]
[353273992,1739734248231,-500.0,8.219e-05,2]
[353273993,1739734248241,-1091.36,8.219e-05,2]
[353273994,1739734248252,-500.0,8.219e-05,2]
[353273995,1739734248262,-612.65,8.219e-05,2]
[353273996,1739734248275,-729.94,8.219e-05,2]
[353273997,1739734248285,-500.0,8.219e-05,2]
[353273998,1739734248295,-500.46450138,8.219e-05,2]
[353273999,1739734248309,-659.34,8.219e-05,2]
[353274000,1739734248319,-1450.55,8.219e-05,2]
[353274001,1739734248331,-11908.02,8.219e-05,2]
[353274002,1739734248341,-2021.25,8.219e-05,2]
[353274003,1739734248355,-1960.49,8.219e-05,2]
[353274004,1739734248364,-1529.99,8.219e-05,2]
[353274005,1739734248375,-981.07,8.219e-05,2]
[353274006,1739734248386,-1125.48,8.219e-05,2]
[353274007,1739734248397,-500.0,8.219e-05,2]
[353274008,1739734248407,-500.0,8.219e-05,2]
[353274009,1739734248418,-500.0,8.219e-05,2]
[353274010,1739734248428,-500.0,8.219e-05,2]
[353274011,1739734248438,-500.0,8.219e-05,2]
[353274012,1739734248448,-500.0,8.219e-05,2]
[353274013,1739734248458,-505.6,8.219e-05,2]
[353274014,1739734248468,-500.0,8.219e-05,2]
[353274015,1739734248479,-500.0,8.219e-05,2]
[353274016,1739734248489,-1340.07,8.219e-05,2]
[353274017,1739734248500,-500.0,8.219e-05,2]
[353274018,1739734248510,-978.86,8.219e-05,2]
[353274019,1739734248521,-500.0,8.219e-05,2]
[353274020,1739734248531,-500.0,8.219e-05,2]
[353274021,1739734248541,-501.18232424,8.219e-05,2]
[353274022,1739734248552,-500.0,8.219e-05,2]
[353274023,1739734248563,-500.0,8.219e-05,2]
[353274024,1739734248574,-500.0,8.219e-05,2]
[353274025,1739734248584,-500.0,8.219e-05,2]
[353274026,1739734248593,-11356.99,8.219e-05,2]
[353274027,1739734248604,-500.0,8.219e-05,2]
[353274028,1739734248743,-500.0,8.219e-05,2]
[353274029,1739734248754,-500.0,8.219e-05,2]
[353274030,1739734248765,-2405.94,8.219e-05,2]
[353274031,1739734248775,-500.0,8.219e-05,2]
[353274032,1739734248785,-935.36,8.219e-05,2]
[353274033,1739734248795,-500.0,8.219e-05,2]
[353274034,1739734248806,-504.9,8.219e-05,2]
[353274035,1739734248816,-3918.87,8.219e-05,2]
[353274036,1739734248826,-500.0,8.219e-05,2]
[353274037,1739734248837,-1308.01,8.219e-05,2]
[353274038,1739734248847,-500.0,8.219e-05,2]
[353274039,1739734248858,-1640.14,8.219e-05,2]
[353274040,1739734248867,-500.0,8.219e-05,2]
[353274041,1739734248878,-321.09939492,8.219e-05,2]
[353274042,1739734248889,-500.0,8.219e-05,2]
[353274043,1739734248899,-501.75703181,8.219e-05,2]
[353274044,1739734248909,-823.15,8.219e-05,2]
[353274045,1739734248920,-2054.68,8.219e-05,2]
[353274046,1739734248930,-370.02369397,8.219e-05,2]
[353274047,1739734248940,-914.4,8.219e-05,2]
[353274048,1739734248951,-501.82798967,8.219e-05,2]
[353274049,1739734248962,-500.0,8.219e-05,2]
[353274050,1739734248973,-500.0,8.219e-05,2]
[353274051,1739734248982,-500.0,8.3e-05,2]
[353274052,1739734248992,-558.34917572,8.3e-05,2]
[353274053,1739734249003,-500.0,8.301e-05,2]
[353274054,1739734249013,-500.0,8.301e-05,2]
[353274055,1739734249023,-500.0,8.301e-05,2]
[353274056,1739734249032,-500.0,8.301e-05,2]
[353274057,1739734249042,-500.0,8.301e-05,2]
[353274058,1739734249052,-500.0,8.301e-05,2]
[353274059,1739734249061,-583.96,8.301e-05,2]
[353274060,1739734249071,-694.78,8.301e-05,2]
[353274061,1739734249082,-500.0,8.301e-05,2]
[353274062,1739734249092,-714.39,8.301e-05,2]
[353274063,1739734249104,-500.0,8.301e-05,2]
[353274064,1739734249113,-500.0,8.301e-05,2]
[353274065,1739734249123,-1060.72,8.301e-05,2]
[353274066,1739734249134,-500.0,8.301e-05,2]
[353274067,1739734249145,-500.0,8.301e-05,2]
[353274068,1739734249155,-500.0,8.301e-05,2]
[353274069,1739734249167,-500.0,8.301e-05,2]
[353274070,1739734249178,-500.0,8.301e-05,2]
[353274071,1739734249189,-500.0,8.301e-05,2]
[353274072,1739734249199,-500.0,8.301e-05,2]
[353274073,1739734249209,-500.0,8.301e-05,2]
[353274074,1739734249220,-500.0,8.301e-05,2]
[353274075,1739734249231,-662.44,8.301e-05,2]
[353274076,1739734249241,-509.48982781,8.301e-05,2]
[353274077,1739734249253,-612.445565,8.301e-05,2]
[353274078,1739734249263,-515.97,8.301e-05,2]
[353274079,1739734249273,-500.0,8.301e-05,2]
[353274080,1739734249283,-500.0,8.301e-05,2]
[353274081,1739734249293,-500.0,8.301e-05,2]
[353274082,1739734249303,-500.0,8.301e-05,2]
[353274083,1739734249317,-500.0,8.301e-05,2]
[353274084,1739734249327,-500.0,8.301e-05,2]
[353274085,1739734249337,-500.0,8.301e-05,2]
[353274086,1739734249348,-500.0,8.301e-05,2]
[353274087,1739734249359,-500.01,8.301e-05,2]
[353274088,1739734249369,-500.0,8.301e-05,2]
[353274089,1739734249379,-500.0,8.301e-05,2]
[353274090,1739734249391,-500.0,8.301e-05,2]
[353274091,1739734249402,-500.0,8.301e-05,2]
[353274092,1739734249412,-500.0,8.301e-05,2]
[353274093,1739734249422,-699.6,8.301e-05,2]
[353274094,1739734249433,-767.72,8.301e-05,2]
[353274095,1739734249444,-11558.15105015,8.301e-05,2]
[353274155,1739735432716,-206.6089715,7.314e-05,2]
[353274157,1739735432731,-300.0,8.217e-05,2]
[353274160,1739735432741,-500.0,8.218e-05,2]
[353274162,1739735432751,-500.0,8.218e-05,2]
[353274164,1739735432762,-500.0,8.218e-05,2]
[353274166,1739735432772,-500.0,8.218e-05,2]
[353274167,1739735432782,-500.0,8.218e-05,2]
[353274169,1739735432792,-500.0,8.218e-05,2]
[353274170,1739735432803,-500.0,8.218e-05,2]
[353274173,1739735432813,-442.32774542,8.218e-05,2]
[353274175,1739735432823,-195.95173851,8.218e-05,2]
[353274176,1739735432833,-500.0,8.218e-05,2]
[353274178,1739735432843,-240.844423,8.218e-05,2]
[353274180,1739735432852,-506.34203787,8.219e-05,2]
[353274183,1739735432862,-500.0,8.219e-05,2]
[353274186,1739735432871,-500.0,8.219e-05,2]
[353274189,1739735432880,-500.0,8.219e-05,2]
[353274191,1739735432889,-500.0,8.219e-05,2]
[353274193,1739735432899,-500.0,8.219e-05,2]
[353274195,1739735432909,-500.0,8.219e-05,2]
[353274197,1739735432918,-500.0,8.219e-05,2]
[353274199,1739735432928,-500.0,8.219e-05,2]
[353274200,1739735432938,-500.0,8.219e-05,2]
[353274201,1739735432947,-501.81521135,8.219e-05,2]
[353274202,1739735432958,-500.0,8.219e-05,2]
[353274203,1739735432967,-500.0,8.219e-05,2]
[353274204,1739735432977,-500.0,8.219e-05,2]
[353274205,1739735432987,-500.0,8.219e-05,2]
[353274206,1739735432996,-500.0,8.219e-05,2]
[353274207,1739735433006,-500.0,8.219e-05,2]
[353274208,1739735433016,-500.0,8.219e-05,2]
[353274209,1739735433025,-500.0,8.219e-05,2]
[353274210,1739735433035,-500.0,8.219e-05,2]
[353274211,1739735433045,-508.24048055,8.219e-05,2]
[353274212,1739735433056,-500.0,8.219e-05,2]
[353274213,1739735433066,-500.0,8.219e-05,2]
[353274214,1739735433076,-182.62607118,8.219e-05,2]
[353274215,1739735433085,-500.0,8.219e-05,2]
[353274216,1739735433095,-500.0,8.219e-05,2]
[353274217,1739735433106,-500.0,8.219e-05,2]
[353274218,1739735433116,-500.0,8.219e-05,2]
[353274219,1739735433126,-500.0,8.219e-05,2]
[353274220,1739735433135,-500.0,8.219e-05,2]
[353274221,1739735433145,-500.2433817,8.219e-05,2]
[353274222,1739735433155,-500.0,8.219e-05,2]
[353274223,1739735433165,-500.0,8.219e-05,2]
[353274224,1739735433175,-500.0,8.219e-05,2]
[353274225,1739735433185,-500.0,8.219e-05,2]
[353274226,1739735433196,-500.0,8.219e-05,2]
[353274227,1739735433206,-500.0,8.219e-05,2]
[353274228,1739735433216,-500.0,8.219e-05,2]
[353274229,1739735433353,-515.94238992,8.219e-05,2]
[353274230,1739735433370,-500.0,8.219e-05,2]
[353274231,1739735433380,-500.0,8.219e-05,2]
[353274232,1739735433390,-500.0,8.219e-05,2]
[353274233,1739735433400,-500.0,8.219e-05,2]
[353274234,1739735433411,-500.0,8.219e-05,2]
[353274235,1739735433421,-500.0,8.219e-05,2]
[353274236,1739735433431,-500.0,8.219e-05,2]
[353274237,1739735433443,-543.74,8.219e-05,2]
[353274238,1739735433453,-500.0,8.219e-05,2]
[353274239,1739735433463,-500.0,8.219e-05,2]
[353274240,1739735433473,-516.87827575,8.219e-05,2]
[353274241,1739735433484,-500.0,8.219e-05,2]
[353274242,1739735433494,-503.10285857,8.219e-05,2]
[353274243,1739735433503,-500.0,8.219e-05,2]
[353274244,1739735433513,-500.0,8.219e-05,2]
[353274245,1739735433522,-500.0,8.219e-05,2]
[353274246,1739735433533,-500.0,8.219e-05,2]
[353274247,1739735433543,-629.83837481,8.219e-05,2]
[353274248,1739735433552,-500.0,8.219e-05,2]
[353274249,1739735433562,-500.0,8.219e-05,2]
[353274250,1739735433572,-563.21,8.219e-05,2]
[353274251,1739735433582,-500.0,8.219e-05,2]
[353274252,1739735433593,-500.0,8.219e-05,2]
[353274253,1739735433602,-506.33584385,8.219e-05,2]
[353274254,1739735433612,-500.0,8.219e-05,2]
[353274255,1739735433623,-500.0,8.219e-05,2]
[353274256,1739735433632,-444.57651355,8.219e-05,2]
[353274257,1739735433642,-500.0,8.219e-05,2]
[353274258,1739735433653,-500.0,8.219e-05,2]
[353274259,1739735433664,-500.0,8.219e-05,2]
[353274260,1739735433675,-500.0,8.219e-05,2]
[353274261,1739735433685,-500.0,8.219e-05,2]
[353274262,1739735433695,-500.0,8.219e-05,2]
[353274263,1739735433706,-500.0,8.219e-05,2]
[353274264,1739735433716,-500.0,8.219e-05,2]
[353274265,1739735433729,-500.0,8.219e-05,2]
[353274266,1739735433739,-500.0,8.219e-05,2]
[353274267,1739735433749,-500.0,8.219e-05,2]
[353274268,1739735433759,-500.0,8.219e-05,2]
[353274269,1739735433769,-352.28159962,8.219e-05,2]
[353274270,1739735433779,-500.0,8.219e-05,2]
[353274271,1739735433790,-500.0,8.219e-05,2]
[353274272,1739735433801,-500.0,8.219e-05,2]
[353274273,1739735433812,-462.66210424,8.219e-05,2]
[353274274,1739735433822,-500.0,8.219e-05,2]
[353274275,1739735433832,-500.0,8.219e-05,2]
[353274276,1739735433842,-500.0,8.219e-05,2]
[353274277,1739735433851,-500.0,8.219e-05,2]
[353274278,1739735433862,-573.12,8.219e-05,2]
[353274279,1739735433872,-500.0,8.219e-05,2]
[353274280,1739735433882,-500.0,8.219e-05,2]
[353274281,1739735433891,-500.0,8.219e-05,2]
[353274282,1739735433901,-500.0,8.219e-05,2]
[353274283,1739735433911,-500.0,8.219e-05,2]
[353274284,1739735433921,-500.0,8.219e-05,2]
[353274285,1739735433931,-500.0,8.219e-05,2]
[353274286,1739735433941,-500.0,8.219e-05,2]
[353274287,1739735433951,-500.0,8.219e-05,2]
[353274288,1739735433960,-500.0,8.219e-05,2]
[353274289,1739735433970,-500.0,8.219e-05,2]
[353274290,1739735433979,-500.0,8.219e-05,2]
[353274291,1739735433988,-500.0,8.219e-05,2]
[353274292,1739735433998,-500.0,8.219e-05,2]
[353274293,1739735434008,-500.0,8.219e-05,2]
[353274294,1739735434017,-500.0,8.219e-05,2]
[353274295,1739735434027,-669.85,8.219e-05,2]
[353274296,1739735434036,-711.7,8.219e-05,2]